bitfinex/quotes_ETHUSD_20250518
["timestamp","ask_amount","ask_price","bid_price","bid_amount"]
[1747598302323,4.14817272,2410.7,2410.6,29.59]
[1747598302528,4.14813472,2410.8,2410.6,29.59]
[1747598302723,4.14815367,2410.8,2410.6,29.59]
[1747598303119,4.14817272,2410.7,2410.6,17.901]
[1747598303320,25.34037272,2410.7,2410.6,11.69]
[1747598303740,4.14937759,2410.0,2409.9,17.902]
[1747598303945,4.14937759,2410.0,2409.9,29.592]
[1747598305154,5.72087759,2410.0,2409.9,29.592]
[1747598305377,4.1512809,2408.9,2408.6,1.5312]
[1747598305517,4.15107736,2409.1,2408.3,2.6939614]
[1747598305518,4.15092773,2409.1,2409.0,17.906]
[1747598305715,4.15082014,2409.2,2409.0,17.906]
[1747598305915,7.16866573,2409.7,2409.0,23.84768479]
[1747598306149,4.15016898,2409.6,2409.0,23.84768479]
[1747598306535,7.16866573,2409.7,2409.2,4.15073196]
[1747598306728,7.16866573,2409.7,2409.3,15.59355858]
[1747598306934,7.16866573,2409.7,2409.4,4.15041089]
[1747598307264,7.16866573,2409.7,2409.5,11.693]
[1747598307457,7.16866573,2409.7,2409.0,17.906]
[1747598307458,4.15092773,2409.1,2409.0,17.906]
[1747598307775,4.15068838,2409.3,2409.0,17.906]
[1747598307917,1.5715,2409.6,2409.0,17.906]
[1747598308122,1.5715,2409.6,2408.1,0.30409608]
[1747598308123,1.5715,2409.0,2408.1,17.906]
[1747598308427,1.5715,2408.8,2408.2,11.696]
[1747598308841,12.79301281,2409.1,2408.3,4.1523066]
[1747598308842,4.15105702,2409.1,2408.3,4.1523066]
[1747598309052,4.15106495,2409.1,2408.4,4.15202342]
[1747598309261,4.15041089,2409.4,2408.6,4.15168762]
[1747598309457,4.30068756,2409.6,2408.6,4.15168762]
[1747598309458,4.30068756,2409.6,2409.0,4.15096921]
[1747598309621,2.70288756,2409.6,2409.3,5.65224081]
[1747598309826,1.6162,2410.0,2409.3,5.65224081]
[1747598309827,1.6162,2410.3,2409.4,0.56522408]
[1747598310130,1.6162,2410.3,2409.3,1.5017]
[1747598310131,4.14932935,2410.1,2409.5,15.88772339]
[1747598310342,0.3445251,2410.0,2409.5,11.696]
[1747598310558,0.3445251,2410.0,2409.3,1.5017]
[1747598310855,4.14999775,2409.7,2409.4,11.696]
[1747598311155,4.14999775,2409.7,2408.8,1.5017]
[1747598311156,0.3445251,2409.6,2408.8,1.5017]
[1747598311357,1.6162,2408.8,2408.2,11.696]
[1747598311521,1.6162,2408.8,2408.2,12.8656]
[1747598311863,4.15075543,2409.2,2408.3,1.54321842]
[1747598312016,0.3445251,2409.6,2408.4,11.675]
[1747598312017,1.9607251,2409.6,2408.4,11.675]
[1747598312221,0.3445251,2409.6,2409.1,1.5017]
[1747598312423,0.3445251,2409.6,2409.2,29.61]
[1747598312656,4.14975918,2409.8,2409.2,37.28692542]
[1747598312855,4.14983215,2409.8,2409.2,33.1362672]
[1747598313153,4.1495989,2409.9,2409.2,33.1362672]
[1747598313379,15.82378593,2410.4,2409.2,33.1362672]
[1747598313658,4.14994047,2409.7,2409.2,33.1362672]
[1747598313954,4.14979253,2409.8,2409.3,3.87887488]
[1747598314184,4.15004534,2409.7,2409.4,11.697]
[1747598314342,4.15023383,2409.6,2409.4,11.697]
[1747598314542,4.46217713,2410.3,2409.4,11.697]
[1747598314837,4.14886113,2410.3,2409.4,11.697]
[1747598315023,4.14982002,2409.8,2409.4,15.78472253]
[1747598315229,1.6162,2410.4,2409.4,4.08772253]
[1747598315421,4.14886113,2410.3,2409.5,27.56161472]
[1747598315666,1.5207,2410.9,2409.8,4.14955712]
[1747598315855,4.14845228,2410.6,2409.8,4.14972196]
[1747598316020,4.14845228,2410.6,2409.7,6.47109336]
[1747598316021,1.8652251,2410.9,2409.9,5.21151192]
[1747598316219,4.14852148,2410.5,2409.9,5.21155531]
[1747598316424,4.14822678,2410.7,2410.0,4.14925028]
[1747598316647,6.01309842,2410.9,2410.1,17.914]
[1747598316832,4.14903327,2410.2,2410.1,17.914]
[1747598317042,4.14903327,2410.2,2410.1,29.612]
[1747598317365,4.14903327,2410.2,2410.1,17.914]
[1747598317669,4.14903327,2410.2,2410.1,29.612]
[1747598318035,4.14903327,2410.2,2410.1,17.914]
[1747598318242,4.14903327,2410.2,2410.1,29.612]
[1747598318768,4.14903327,2410.2,2410.1,17.914]
[1747598318967,4.14903327,2410.2,2410.1,29.612]
[1747598320174,5.77943327,2410.2,2410.1,17.80418373]
[1747598320335,4.15058315,2409.3,2409.2,17.913]
[1747598320533,4.15058315,2409.3,2409.2,29.611]
[1747598321468,4.15058315,2409.3,2409.2,17.913]
[1747598321948,12.15058315,2409.3,2409.2,17.913]
[1747598322465,4.15058315,2409.3,2409.2,17.913]
[1747598323569,4.15058315,2409.3,2409.2,29.611]
[1747598323753,4.15058315,2409.3,2409.2,29.613]
[1747598324378,4.15058315,2409.3,2409.2,17.913]
[1747598324739,4.15058315,2409.3,2409.2,29.613]
[1747598325088,1.6394,2408.8,2408.5,17.917]
[1747598325276,1.6394,2408.8,2408.6,11.7]
[1747598325277,5.79096082,2408.8,2408.6,11.7]
[1747598325583,4.15161705,2408.7,2408.6,11.7]
[1747598326254,4.15265146,2408.1,2408.0,11.7]
[1747598326449,4.15416712,2407.3,2407.1,1.6269]
[1747598326654,11.658,2408.2,2407.1,1.6269]
[1747598326655,11.658,2408.2,2407.2,29.581]
[1747598326923,4.15252792,2408.2,2407.3,0.0415396]
[1747598327102,1.91459926,2409.4,2407.5,1.6269]
[1747598327390,1.91459926,2409.4,2407.3,3.12494396]
[1747598327391,4.61689906,2409.1,2408.2,1.6269]
[1747598327599,4.15136744,2408.9,2408.3,33.73320012]
[1747598327806,0.46593797,2409.1,2408.3,41.24]
[1747598327951,0.46593797,2409.1,2408.4,4.08772253]
[1747598328152,0.46593797,2409.1,2408.6,1.6269]
[1747598328352,4.15136151,2408.9,2408.6,1.6269]
[1747598328596,4.15116603,2409.0,2408.7,11.66]
[1747598328800,4.15110004,2409.0,2408.8,11.66]
[1747598329007,0.46593797,2409.1,2408.8,11.66]
[1747598329290,0.46593797,2409.1,2408.3,17.921]
[1747598329291,4.15161705,2408.7,2408.3,17.921]
[1747598329447,0.46593797,2409.1,2408.4,11.661]
[1747598329652,4.15127236,2408.9,2408.4,11.661]
[1747598329894,4.1519618,2408.5,2408.4,11.661]
[1747598330096,4.15213419,2408.4,2408.3,17.921]
[1747598330405,4.15213419,2408.4,2408.3,29.582]
[1747598330557,4.15202902,2408.5,2408.3,29.582]
[1747598330752,4.15142039,2408.9,2408.3,35.71134313]
[1747598330753,4.15141666,2408.9,2408.3,35.71134313]
[1747598330948,4.15157084,2408.8,2408.3,31.55904342]
[1747598331153,11.655,2409.2,2408.3,31.55904342]
[1747598331154,4.1517189,2408.7,2408.3,31.55904342]
[1747598331463,4.15213123,2408.5,2408.4,11.661]
[1747598331664,4.15159612,2408.8,2408.4,12.86308842]
[1747598331996,4.15151904,2408.8,2408.4,12.86308842]
[1747598332203,0.3445251,2408.7,2408.5,11.661]
[1747598332500,0.3445251,2408.7,2408.3,18.38944342]
[1747598332674,0.3445251,2408.7,2408.4,11.662]
[1747598333000,4.4961457,2408.7,2408.5,1.5086]
[1747598333306,4.49614215,2408.7,2408.6,11.662]
[1747598334508,4.15213419,2408.4,2408.3,17.921]
[1747598334801,4.15213419,2408.4,2408.3,29.583]
[1747598335306,4.15213419,2408.4,2408.3,17.921]
[1747598335606,4.15213419,2408.4,2408.3,29.583]
[1747598335807,4.15185452,2408.6,2408.3,29.583]
[1747598335970,0.3445251,2408.7,2408.4,1.5086]
[1747598336163,0.3445251,2408.7,2408.6,4.15178942]
[1747598336366,0.3445251,2408.7,2408.6,5.66038942]
[1747598336607,4.61556867,2409.9,2409.5,1.5086]
[1747598336772,0.46593797,2409.9,2409.7,4.81689336]
[1747598336968,0.46593797,2409.9,2409.8,4.14972196]
[1747598337169,0.46593797,2409.9,2409.7,8.96671308]
[1747598337403,0.46593797,2409.9,2409.7,8.96677965]
[1747598337923,0.46593797,2409.9,2409.6,17.924]
[1747598338082,0.46593797,2409.9,2409.7,11.662]
[1747598338266,4.14972196,2409.8,2409.7,11.662]
[1747598339174,4.61554415,2409.9,2409.7,11.662]
[1747598339375,0.46593797,2409.9,2409.7,14.77146]
[1747598340211,0.46593797,2409.9,2409.6,17.924]
[1747598340516,0.46593797,2409.9,2409.7,15.85127009]
[1747598340742,0.62807877,2410.1,2409.8,1.5068]
[1747598340894,0.62807877,2410.1,2409.8,24.8068]
[1747598341220,0.62807877,2410.1,2409.9,4.14953397]
[1747598341539,0.62807877,2410.1,2410.0,2.8956334]
[1747598341824,0.62807877,2410.1,2410.0,7.39139381]
[1747598342030,0.62807877,2410.1,2410.0,3.24201622]
[1747598342427,0.62807877,2410.1,2410.0,26.53701622]
[1747598342623,0.62807877,2410.1,2410.0,32.19319381]
[1747598343637,0.15701969,2410.1,2410.0,16.40781622]
[1747598343838,0.15701969,2410.1,2410.0,17.66156041]
[1747598343994,4.30622511,2410.1,2410.0,12.00538282]
[1747598344198,5.92962511,2410.1,2410.0,12.00538282]
[1747598345839,5.92962511,2410.1,2410.0,12.00338282]
[1747598347840,5.77260542,2410.1,2410.0,0.34638282]
[1747598348260,5.77260542,2410.1,2410.0,12.00338282]
[1747598348417,5.77260542,2410.1,2410.0,11.657]
[1747598348817,4.14920542,2410.1,2410.0,11.657]
[1747598349143,4.14989417,2409.7,2409.6,19.4812]
[1747598349338,4.14989417,2409.7,2409.6,29.581]
[1747598350711,4.14979608,2409.8,2409.6,17.924]
[1747598351031,4.14979608,2409.8,2409.7,11.658]
[1747598351643,1.97515959,2410.6,2409.7,11.658]
[1747598351843,4.14989417,2409.7,2409.6,17.924]
[1747598352076,4.14989417,2409.7,2409.6,29.582]
[1747598352770,4.14989417,2409.7,2409.6,17.924]
[1747598352971,4.14989417,2409.7,2409.6,29.582]
[1747598353856,4.14973705,2409.8,2409.6,32.69592]
[1747598354065,4.1497977,2409.8,2409.6,32.69592]
[1747598354383,4.14989417,2409.7,2409.6,32.69592]
[1747598354582,1.97515959,2410.6,2409.6,32.69592]
[1747598354761,4.14955518,2409.9,2409.6,32.69592]
[1747598355079,4.14931086,2410.1,2409.7,3.425312]
[1747598355379,4.14931086,2410.1,2409.8,11.658]
[1747598355583,1.6639,2410.6,2409.8,11.658]
[1747598355783,4.14921703,2410.1,2409.8,11.658]
[1747598356083,4.14906668,2410.2,2409.8,11.658]
[1747598356380,4.14929715,2410.1,2409.9,2.6698312]
[1747598356680,4.14915883,2410.2,2409.9,2.6698312]
[1747598356980,4.14781623,2411.0,2410.0,1.628]
[1747598357181,4.14816907,2410.8,2410.3,4.81689336]
[1747598357479,4.14816907,2410.8,2410.3,8.96575052]
[1747598357642,6.14990419,2411.1,2410.6,4.14824059]
[1747598357845,2.00233856,2411.1,2410.7,22.73289336]
[1747598358042,2.00233856,2411.1,2410.8,2.27328934]
[1747598358241,2.00233856,2411.1,2410.9,13.236]
[1747598358456,2.00233856,2411.1,2411.0,4.14765657]
[1747598358681,2.00233856,2411.1,2411.0,28.99465657]
[1747598359347,2.59034518,2411.8,2411.2,1.6581]
[1747598359578,2.59034518,2411.8,2411.6,4.81689336]
[1747598359784,2.59034518,2411.8,2411.7,23.7165527]
[1747598360285,0.60777572,2411.8,2411.7,23.7165527]
[1747598360849,3.18587392,2412.1,2411.7,23.7165527]
[1747598360850,3.18587392,2412.1,2411.9,4.14603214]
[1747598361063,3.18587392,2412.1,2412.0,28.02589336]
[1747598361666,4.14535831,2412.4,2412.0,28.02589336]
[1747598361874,4.14512719,2412.5,2412.1,2.93110492]
[1747598362077,4.14536578,2412.4,2412.1,2.93110492]
[1747598362480,4.14593698,2412.0,2411.9,1.6581]
[1747598362681,4.14628078,2411.8,2411.7,17.912]
[1747598362892,1.5376,2412.5,2411.7,17.912]
[1747598362893,1.5376,2412.5,2411.7,29.512]
[1747598363196,4.14637734,2411.8,2411.7,29.512]
[1747598363494,4.14637734,2411.8,2411.7,18.25313866]
[1747598363697,4.14637734,2411.8,2411.7,29.85813866]
[1747598364258,4.14637734,2411.8,2411.7,0.34613866]
[1747598364459,12.14637734,2411.8,2411.7,0.34613866]
[1747598364891,13.68397734,2411.8,2411.7,0.34613866]
[1747598365095,4.14731254,2411.2,2411.1,17.907]
[1747598365308,4.14731254,2411.2,2411.1,29.512]
[1747598366160,5.68491254,2411.2,2411.1,17.907]
[1747598367906,4.14731254,2411.2,2411.1,17.907]
[1747598369011,1.6342,2412.1,2411.1,20.8582]
[1747598369210,4.14593698,2412.0,2411.1,20.8582]
[1747598369364,4.1467999,2411.5,2411.1,20.8582]
[1747598369916,5.78004056,2412.1,2411.1,25.00559298]
[1747598370069,4.14561516,2412.2,2411.1,20.8582]
[1747598370276,4.1457651,2412.1,2411.2,11.606]
[1747598370594,4.14731254,2411.2,2411.1,17.907]
[1747598370789,4.14593698,2412.0,2411.1,29.513]
[1747598370990,4.14731254,2411.2,2411.1,17.907]
[1747598371169,4.14731254,2411.2,2411.1,29.513]
[1747598372009,4.14628078,2411.8,2411.1,29.513]
[1747598372179,4.147103,2411.4,2411.1,29.513]
[1747598372511,4.14648225,2411.7,2411.3,1.5713]
[1747598372672,4.14404707,2413.1,2411.9,1.5713]
[1747598373011,4.14471115,2412.8,2412.2,4.14544342]
[1747598373305,4.14416286,2413.1,2412.5,4.14497643]
[1747598373478,1.6342,2413.6,2412.6,12.17662764]
[1747598373679,4.14412449,2413.1,2412.7,24.7483]
[1747598373979,4.14420936,2413.1,2412.7,24.7483]
[1747598374300,4.14429193,2413.0,2412.8,11.605]
[1747598374472,4.14412572,2413.1,2412.9,17.907]
[1747598374688,4.47515383,2413.5,2412.9,21.01533]
[1747598375026,4.14402319,2413.2,2412.9,21.01533]
[1747598375227,4.14421881,2413.0,2412.9,17.907]
[1747598375381,4.14421881,2413.0,2412.9,29.509]
[1747598376795,4.14421881,2413.0,2412.2,19.565]
[1747598376796,1.5349,2412.6,2410.7,4.36]
[1747598377119,5.68152464,2411.6,2410.6,1.30688448]
[1747598377325,4.14731254,2411.2,2411.1,0.49072835]
[1747598377842,15.70831254,2411.2,2411.1,0.49072835]
[1747598378519,15.70631254,2411.2,2411.1,0.49072835]
[1747598378901,4.14731254,2411.2,2411.1,0.49072835]
[1747598380267,4.14680919,2411.5,2411.1,0.49072835]
[1747598380268,1.5349,2411.6,2411.1,0.49072835]
[1747598380552,11.556,2411.9,2411.1,0.49072835]
[1747598380714,4.14680836,2411.5,2411.1,0.49072835]
[1747598380916,11.556,2411.9,2411.1,1.02005097]
[1747598381116,11.556,2411.9,2410.8,11.602]
[1747598381436,4.14628078,2411.8,2410.8,11.602]
[1747598381638,11.556,2411.9,2410.8,11.602]
[1747598381938,4.14782861,2410.9,2410.8,11.602]
[1747598382456,11.554,2411.5,2410.8,11.602]
[1747598382657,4.14725141,2411.3,2410.9,1.1602]
[1747598382862,1.5875,2411.8,2410.9,1.1602]
[1747598383049,4.14717341,2411.3,2410.9,1.1602]
[1747598383447,1.5875,2412.3,2411.0,1.5811]
[1747598383645,4.14546746,2412.3,2411.2,1.5811]
[1747598383848,4.1457651,2412.1,2411.2,1.5811]
[1747598384047,17.28344137,2412.6,2410.9,12.7112]
[1747598384048,4.14714054,2411.3,2410.9,2.7417]
[1747598384358,4.14696856,2411.4,2411.3,11.604]
[1747598386350,4.14740047,2411.2,2410.9,1.5815]
[1747598386664,4.14748455,2411.1,2411.0,11.604]
[1747598387756,4.14748455,2411.1,2410.6,19.4835]
[1747598387757,4.14817272,2410.7,2410.6,17.902]
[1747598387955,4.14786782,2410.9,2410.6,29.446]
[1747598388132,4.14803633,2410.8,2410.6,29.446]
[1747598388463,4.14817272,2410.7,2410.6,29.446]
[1747598388667,15.69020856,2411.3,2410.6,29.446]
[1747598388834,11.543,2411.3,2410.6,29.446]
[1747598389034,4.14817272,2410.7,2410.6,29.446]
[1747598389758,4.14817272,2410.7,2410.6,29.447]
[1747598390168,4.14937759,2410.0,2409.9,19.956]
[1747598390475,5.69607759,2410.0,2409.9,29.451]
[1747598392375,5.69607759,2410.0,2409.9,11.545]
[1747598392983,5.69607759,2410.0,2409.2,17.906]
[1747598392984,4.15058315,2409.3,2409.2,17.906]
[1747598393153,4.15058315,2409.3,2409.2,29.453]
[1747598394543,5.71698315,2409.3,2409.2,17.906]
[1747598394742,5.71698315,2409.3,2409.2,29.453]
[1747598396476,4.1519618,2408.5,2408.4,17.914]
[1747598396678,4.1519618,2408.5,2408.4,29.464]
[1747598397246,5.7183618,2408.5,2408.4,29.464]
[1747598397583,4.1519618,2408.5,2408.4,29.464]
[1747598397779,3.88274442,2408.8,2408.4,30.14487673]
[1747598397956,13.0954,2409.2,2408.4,29.46175537]
[1747598398160,4.15165551,2408.7,2408.4,29.46175537]
[1747598398471,4.1519618,2408.5,2408.4,29.46175537]
[1747598399464,4.1519618,2408.5,2408.4,29.46475537]
[1747598399895,5.6587618,2408.5,2408.4,29.46475537]
[1747598400585,4.15213419,2408.4,2408.3,2.05]
[1747598400923,15.67813419,2408.4,2408.3,2.05]
[1747598401958,23.67813419,2408.4,2408.3,2.05]
[1747598402177,15.67813419,2408.4,2408.3,2.05]
[1747598402362,4.1523066,2408.3,2408.2,11.553]
[1747598402673,4.1523066,2408.3,2407.7,17.918]
[1747598402674,12.15316886,2407.8,2407.7,11.555]
[1747598402873,4.15340123,2407.7,2407.6,11.555]
[1747598403083,4.15351387,2407.6,2407.5,11.555]
[1747598403387,8.0,2407.7,2407.3,11.555]
[1747598403549,4.15385893,2407.4,2407.3,11.555]
[1747598404194,1.6268,2407.2,2406.2,19.972]
[1747598404347,4.15539565,2406.6,2406.3,11.555]
[1747598404550,4.15533169,2406.6,2406.3,11.555]
[1747598404762,4.1555851,2406.4,2406.3,11.555]
[1747598405282,4.1557578,2406.3,2406.2,2.05]
[1747598405701,4.15696707,2405.6,2405.5,17.927]
[1747598405879,4.15731271,2405.4,2405.3,0.65477042]
[1747598406062,4.15783127,2405.1,2405.0,38.27442225]
[1747598406262,11.82574229,2405.6,2405.0,38.27442225]
[1747598406263,11.52,2405.4,2405.0,38.27442225]
[1747598406453,15.67737778,2405.4,2405.0,38.27442225]
[1747598406786,4.1572621,2405.5,2405.0,40.18505794]
[1747598406986,1.6268,2406.3,2405.0,40.18505794]
[1747598407160,4.15662619,2405.8,2405.0,40.18505794]
[1747598407368,11.518,2406.2,2405.1,11.558]
[1747598407553,1.6268,2406.3,2405.2,5.75092253]
[1747598407891,4.15783127,2405.1,2405.0,40.18505794]
[1747598408199,4.15783127,2405.1,2405.0,38.27442225]
[1747598408530,32.79645127,2405.1,2405.0,22.53592977]
[1747598408809,32.79645127,2405.1,2403.2,38.57610193]
[1747598408810,4.15869583,2404.6,2403.2,38.57610193]
[1747598409011,8.0,2404.6,2403.3,0.34734848]
[1747598409214,8.0,2404.4,2403.3,4.23969352]
[1747598409384,4.16077223,2403.4,2403.3,0.34734848]
[1747598409710,11.519,2403.5,2403.3,0.34734848]
[1747598410009,11.519,2403.5,2402.1,1.30688448]
[1747598410010,4.37888052,2402.2,2402.1,1.30688448]
[1747598410215,4.37888052,2402.2,2400.4,8.63844859]
[1747598410216,4.26406412,2401.5,2401.4,39.71522409]
[1747598410515,0.1,2400.2,2397.8,22.37218384]
[1747598410675,4.17240372,2396.7,2396.6,0.20503776]
[1747598411018,4.17292605,2396.4,2395.1,13.96013127]
[1747598411182,12.90043061,2396.7,2395.1,13.96013127]
[1747598411183,14.266,2396.3,2395.2,0.04171834]
[1747598411374,14.266,2396.3,2392.5,0.30985092]
[1747598411375,4.1750167,2395.2,2392.5,0.30985092]
[1747598411574,8.9721406,2395.1,2392.4,39.54876277]
[1747598411770,41.335334,2395.0,2392.5,0.02091883]
[1747598412018,4.1774325,2393.9,2392.5,3.97788699]
[1747598412182,4.17683619,2394.2,2393.9,0.01977668]
[1747598412183,4.17710944,2394.0,2393.9,0.01977668]
[1747598412391,4.94130705,2394.1,2393.9,0.01977668]
[1747598412571,3.330746,2394.0,2393.2,17.944]
[1747598412912,1.31317217,2394.7,2393.2,17.944]
[1747598413112,20.258,2395.5,2393.2,17.944]
[1747598413294,4.17803801,2393.5,2393.2,17.944]
[1747598413469,0.09999963,2394.0,2393.2,19.7384]
[1747598413668,4.17745843,2393.8,2392.4,39.54876277]
[1747598413876,6.066334,2393.9,2392.4,32.76363336]
[1747598413877,4.17815659,2393.4,2392.4,32.76363336]
[1747598414073,4.18025248,2392.2,2392.1,20.33704464]
[1747598414319,0.52452738,2393.0,2392.1,20.33704464]
[1747598414528,4.17875641,2393.1,2388.8,41.19318182]
[1747598414529,4.08532302,2389.0,2388.8,39.4867034]
[1747598414773,8.0,2387.2,2385.3,1.254553]
[1747598414889,4.18883257,2387.3,2387.2,0.19046327]
[1747598415094,4.18883257,2387.3,2384.4,14.639]
[1747598415095,4.19006117,2386.6,2382.5,1.5478]
[1747598415401,4.19006117,2386.6,2381.6,1.37715187]
[1747598415402,0.1,2383.8,2382.2,5.445866]
[1747598415601,0.51977225,2383.7,2381.6,1.37715187]
[1747598415916,0.51977225,2383.7,2379.6,24.964]
[1747598415917,4.19674332,2382.8,2378.1,0.30753926]
[1747598416221,6.90126485,2384.4,2381.4,0.31726471]
[1747598416523,24.964,2384.3,2381.4,0.31726471]
[1747598416693,0.3291691,2384.2,2381.4,0.04447232]
[1747598416894,0.00051926,2384.1,2383.4,1.5478]
[1747598417080,0.1,2390.8,2383.6,1.5478]
[1747598417277,0.02140685,2389.0,2385.4,1.5478]
[1747598417485,0.180155,2392.3,2388.3,8.14297504]
[1747598417486,2.25776833,2392.3,2388.3,8.14297504]
[1747598417723,2.25776833,2392.3,2388.4,18.022]
[1747598417724,0.02140685,2389.6,2388.4,18.022]
[1747598417934,10.43948434,2389.5,2387.3,1.6735086]
[1747598418082,0.02140685,2390.5,2388.1,1.5478]
[1747598418282,0.50857389,2391.5,2388.2,43.053]
[1747598418621,0.55457538,2392.7,2389.3,8.14297504]
[1747598418826,0.55457538,2392.7,2389.4,0.88170502]
[1747598419120,0.44450036,2393.6,2390.4,8.0]
[1747598419426,4.17745843,2393.8,2390.5,1.5478]
[1747598419594,25.031,2393.7,2390.5,1.5478]
[1747598419923,4.17780748,2393.6,2390.5,1.5478]
[1747598420095,25.14499963,2393.5,2389.5,18.75654866]
[1747598420289,8.14297504,2391.5,2388.3,2.72997363]
[1747598420516,8.0,2391.3,2388.2,1.5478]
[1747598420714,1.13409072,2391.2,2388.2,1.5478]
[1747598421092,25.045,2392.4,2388.2,1.5478]
[1747598421330,25.045,2392.4,2388.4,8.0]
[1747598421498,25.045,2392.4,2388.3,25.045]
[1747598421499,4.18039469,2392.2,2388.6,8.0]
[1747598421690,4.18039469,2392.2,2388.0,4.18756307]
[1747598421691,8.14297504,2391.3,2387.4,0.32213086]
[1747598421882,2.02982243,2390.3,2387.1,1.5478]
[1747598422083,8.0,2390.0,2387.1,1.5478]
[1747598422289,8.0,2390.0,2386.3,18.033]
[1747598422290,8.14297504,2389.3,2386.3,18.033]
[1747598422643,8.14297504,2389.8,2385.2,18.043]
[1747598422844,2.03181699,2387.0,2384.0,0.02140685]
[1747598423122,8.0,2387.1,2383.2,18.49159758]
[1747598423123,27.1505864,2386.9,2383.2,18.49159758]
[1747598423333,27.1505864,2386.9,2381.6,27.1266053]
[1747598423334,8.14297504,2385.2,2381.8,1.5478]
[1747598423488,8.14297504,2385.2,2380.2,20.06581876]
[1747598423489,4.61226534,2385.1,2381.4,19.37325672]
[1747598423687,25.06,2385.0,2381.5,1.93732567]
[1747598423941,8.14297504,2384.0,2379.5,19.6686]
[1747598424240,8.14297504,2383.2,2379.0,1.6256]
[1747598424390,0.43922903,2383.1,2379.1,18.043]
[1747598424732,25.06,2385.4,2381.7,1.6256]
[1747598425030,4.19285758,2385.1,2382.0,4.19799965]
[1747598425201,8.14297504,2388.1,2382.2,1.6256]
[1747598425528,0.47420036,2386.7,2382.0,4.19804226]
[1747598425822,2.17142204,2386.5,2380.9,1.6256]
[1747598425998,2.17142204,2386.5,2379.1,2.19652436]
[1747598425999,4.29163793,2385.8,2382.1,0.21789681]
[1747598426352,4.20395529,2378.8,2378.6,0.34431395]
[1747598426502,4.20395529,2378.8,2374.9,1.4436959]
[1747598426503,8.0,2377.6,2375.9,1.6256]
[1747598426704,25.094,2378.4,2375.9,1.6256]
[1747598426901,0.3291691,2378.3,2375.5,0.02140685]
[1747598427230,0.3291691,2378.3,2372.9,0.41564]
[1747598427231,3.27134598,2368.1,2367.1,4.22455195]
[1747598427452,4.21656265,2371.6,2371.5,1.26244]
[1747598427606,7.721214,2371.6,2370.2,0.26]
[1747598427809,4.21887524,2370.3,2370.2,0.26]
[1747598428020,1.5663,2370.2,2366.4,8.8639]
[1747598428219,1.5663,2370.2,2366.6,4.22547114]
[1747598428448,0.02140685,2373.3,2370.2,0.1]
[1747598428631,2.19249133,2374.5,2368.5,2.12257964]
[1747598428952,0.03862685,2374.6,2366.5,0.88639]
[1747598428953,8.14297504,2369.5,2366.5,0.88639]
[1747598429188,37.50354569,2369.4,2366.6,18.115]
[1747598429320,5.198,2372.6,2366.6,43.274]
[1747598429663,0.1,2369.1,2365.8,0.25832824]
[1747598429821,25.159,2369.0,2365.0,0.025]
[1747598430247,8.14297504,2367.9,2365.0,0.025]
[1747598430448,78.10693411,2368.9,2361.0,2.61381184]
[1747598430449,2.1101797,2366.6,2361.0,2.61381184]
[1747598430605,25.159,2366.5,2361.0,2.61381184]
[1747598430808,0.62958383,2367.8,2361.0,2.61381184]
[1747598430809,4.22189948,2368.7,2362.1,1.5849]
[1747598431086,5.54485848,2368.1,2363.2,1.5849]
[1747598431208,5.54485848,2368.1,2362.2,19.52326174]
[1747598431209,0.3241691,2368.0,2362.2,18.61453243]
[1747598431554,5.54485848,2368.1,2364.6,8.14297504]
[1747598431751,0.0593,2371.0,2367.8,0.1]
[1747598431962,0.0593,2374.3,2369.7,8.14297504]
[1747598432112,2.11704779,2375.5,2371.3,8.14297504]
[1747598432445,0.4773487,2378.6,2374.5,8.14297504]
[1747598432650,0.02140685,2381.5,2374.9,1.5849]
[1747598432860,0.02140685,2381.5,2374.6,83.66701571]
[1747598432861,2.15773063,2380.7,2375.2,1.5849]
[1747598433008,1.266434,2378.5,2377.2,1.5849]
[1747598433343,0.1,2376.7,2372.1,0.02140685]
[1747598433553,0.1,2376.7,2367.0,16.35]
[1747598433554,1.245,2374.9,2367.5,20.71549753]
[1747598433704,0.34373416,2375.4,2367.7,4.327]
[1747598433908,4.3060998,2377.5,2367.9,2.17607069]
[1747598434162,4.20380023,2378.8,2367.8,26.15993017]
[1747598434163,0.1,2377.1,2368.1,2.19620176]
[1747598434339,1.245,2376.7,2369.4,16.0]
[1747598434546,26.69220682,2376.6,2369.0,0.36848953]
[1747598434865,0.47379059,2377.1,2369.2,2.19570155]
[1747598435149,16.0,2378.6,2371.5,0.1]
[1747598435346,2.10764942,2377.8,2368.7,16.0]
[1747598435552,4.22350804,2367.7,2367.6,1.260588]
[1747598435733,0.50207034,2367.7,2361.9,0.37149663]
[1747598435936,4.22707866,2365.7,2365.6,1e-08]
[1747598436231,0.35939352,2368.4,2365.6,1e-08]
[1747598436232,4.22456356,2367.2,2365.6,4.216]
[1747598436433,0.32461193,2368.3,2365.0,18.183]
[1747598436754,4.22058923,2369.4,2365.4,8.14297504]
[1747598436910,1.5915,2370.2,2365.5,18.183]
[1747598437112,1.5915,2370.2,2364.6,18.183]
[1747598437459,26.14402636,2370.1,2364.7,18.183]
[1747598437632,4.22791863,2365.3,2362.8,18.183]
[1747598437832,1.5915,2369.6,2363.5,8.14297504]
[1747598438036,8.14297504,2369.2,2363.6,18.199]
[1747598438234,0.95205918,2369.1,2363.8,1.6218]
[1747598438530,0.65036554,2370.0,2364.5,1.6218]
[1747598438755,0.32905925,2370.0,2364.9,1.6218]
[1747598439075,0.21923469,2371.4,2365.0,4.22]
[1747598439239,0.53194453,2371.0,2365.1,18.621]
[1747598439442,25.276,2371.3,2365.2,18.199]
[1747598439658,2.14761551,2369.0,2361.9,0.49290348]
[1747598439880,2.14761551,2369.0,2361.0,9.9968]
[1747598439881,1.5403,2363.5,2358.0,2.17650626]
[1747598440065,4.96795643,2360.1,2360.0,17.8097114]
[1747598440266,4.23836568,2359.4,2357.1,1.319379]
[1747598440547,4.2460609,2355.2,2355.0,463.43724714]
[1747598440865,43.487,2355.1,2355.0,381.02434439]